fUST/lending_fUST_20250314
["ID","MTS","AMOUNT","RATE_DAILY","PERIOD"]
[356137461,1741942238402,-1054.22,0.00010187,2]
[356137462,1741942238412,-500.0,0.00010187,2]
[356137463,1741942238423,-1018.22,0.00010187,2]
[356137464,1741942238433,-1167.59,0.00010187,2]
[356137465,1741942238442,-716.06,0.00010187,2]
[356137466,1741942238451,-866.32,0.00010187,2]
[356137467,1741942238461,-8671.9,0.00010187,2]
[356137469,1741942238471,-500.0,0.00010187,2]
[356137470,1741942238481,-500.0,0.00010187,2]
[356137471,1741942238492,-500.0,0.00010187,2]
[356137473,1741942238501,-763.0,0.00010187,2]
[356137475,1741942238511,-518.3088342,0.00010187,2]
[356137476,1741942238521,-500.0,0.00010187,2]
[356137478,1741942238530,-5378.32,0.00010187,2]
[356137479,1741942238539,-494.82871952,0.00010187,2]
[356137481,1741942238549,-500.0,0.00010187,2]
[356137483,1741942238558,-543.11,0.00010187,2]
[356137484,1741942238568,-620.27,0.00010187,2]
[356137486,1741942238577,-135.11943293,0.00010187,2]
[356137487,1741942238590,-2651.02423557,0.00010187,2]
[356137488,1741942238784,-19599.5963315,0.00010187,2]
[356137489,1741942238794,-500.0,0.00010187,2]
[356137490,1741942238804,-500.0,0.00010187,2]
[356137491,1741942238813,-500.0,0.00010187,2]
[356137492,1741942238823,-976.08,0.00010187,2]
[356137493,1741942238832,-998.25,0.00010187,2]
[356137494,1741942238842,-832.63,0.00010187,2]
[356137495,1741942238851,-500.0,0.00010187,2]
[356137496,1741942238861,-998.58,0.00010187,2]
[356137497,1741942238870,-500.0,0.00010187,2]
[356137498,1741942238880,-500.0,0.00010187,2]
[356137499,1741942238890,-565.53,0.00010187,2]
[356137500,1741942238899,-849.01,0.00010187,2]
[356137501,1741942238908,-500.0,0.00010187,2]
[356137502,1741942238917,-2375.88,0.00010187,2]
[356137503,1741942238927,-798.86,0.00010187,2]
[356137504,1741942238936,-500.0,0.00010187,2]
[356137505,1741942238946,-609.57,0.00010187,2]
[356137506,1741942238955,-689.66,0.00010187,2]
[356137507,1741942238965,-3499.52,0.00010187,2]
[356137508,1741942238974,-508.94224261,0.00010187,2]
[356137509,1741942238985,-641.05,0.00010187,2]
[356137510,1741942238994,-4350.28364869,0.00010187,2]
[356137511,1741942239008,-1316.49258362,0.00010187,2]
[356137522,1741942240979,-5411.82376769,0.00010187,2]
[356137523,1741942240991,-500.0,0.00010187,2]
[356137524,1741942241000,-513.3976868,0.00010187,2]
[356137525,1741942241011,-1038.28,0.00010187,2]
[356137526,1741942241021,-500.0,0.00010187,2]
[356137527,1741942241032,-929.16,0.00010187,2]
[356137528,1741942241041,-4224.58,0.00010187,2]
[356137529,1741942241051,-537.03,0.00010188,2]
[356137530,1741942241062,-507.56564339,0.00010188,2]
[356137531,1741942241072,-500.0,0.00010188,2]
[356137532,1741942241082,-506.61180584,0.00010188,2]
[356137533,1741942241091,-1333.73,0.00010188,2]
[356137534,1741942241101,-500.0,0.00010188,2]
[356137535,1741942241111,-502.19811071,0.00010188,2]
[356137536,1741942241121,-500.0,0.00010188,2]
[356137537,1741942241133,-696.72,0.00010188,2]
[356137538,1741942241144,-500.0,0.00010188,2]
[356137539,1741942241153,-507.10883195,0.00010188,2]
[356137540,1741942241164,-500.0,0.00010188,2]
[356137541,1741942241173,-511.47745882,0.00010188,2]
[356137542,1741942241183,-501.17107187,0.00010188,2]
[356137543,1741942241193,-500.0,0.00010188,2]
[356137544,1741942241203,-500.0,0.00010188,2]
[356137545,1741942241212,-720.34,0.00010188,2]
[356137546,1741942241222,-511.2756296,0.00010188,2]
[356137547,1741942241232,-502.36401157,0.00010188,2]
[356137548,1741942241243,-500.0,0.00010188,2]
[356137549,1741942241252,-506.41977835,0.00010188,2]
[356137550,1741942241262,-500.0,0.00010188,2]
[356137551,1741942241271,-396.97119091,0.00010188,2]
[356137552,1741942241582,-107.39757193,0.00010188,2]
[356137553,1741942241593,-514.71978911,0.00010188,2]
[356137554,1741942241605,-372.38263896,0.00010188,2]
[356137608,1741942243420,-127.61736104,0.00010188,2]
[356137609,1741942243430,-1138.47,0.00010188,2]
[356137610,1741942243440,-649.81,0.00010188,2]
[356137611,1741942243449,-500.0,0.00010188,2]
[356137612,1741942243459,-500.0,0.00010188,2]
[356137613,1741942243469,-500.0,0.00010188,2]
[356137614,1741942243478,-500.0,0.00010188,2]
[356137616,1741942243487,-1700.34,0.00010188,2]
[356137618,1741942243498,-710.8,0.00010188,2]
[356137619,1741942243507,-500.0,0.00010188,2]
[356137621,1741942243516,-554.45,0.00010188,2]
[356137622,1741942243525,-500.0,0.00010188,2]
[356137623,1741942243535,-519.33,0.00010188,2]
[356137624,1741942243544,-500.0,0.00010188,2]
[356137625,1741942243553,-503.50720994,0.00010188,2]
[356137626,1741942243562,-500.0,0.00010188,2]
[356137627,1741942243571,-500.0,0.00010188,2]
[356137628,1741942243580,-500.0,0.00010188,2]
[356137629,1741942243590,-500.0,0.00010188,2]
[356137630,1741942243604,-500.0,0.00010188,2]
[356137631,1741942243613,-500.0,0.00010188,2]
[356137632,1741942243623,-500.0,0.00010188,2]
[356137633,1741942243632,-437.18404449,0.00010188,2]
[356137634,1741942243642,-500.0,0.00010188,2]
[356137635,1741942243651,-500.0,0.00010188,2]
[356137636,1741942243660,-647.33,0.00010188,2]
[356137637,1741942243670,-751.32,0.00010188,2]
[356137638,1741942243681,-375.57605865,0.00010188,2]
[356137639,1741942243690,-500.0,0.00010188,2]
[356137640,1741942243699,-506.56251914,0.00010188,2]
[356137641,1741942243709,-506.58190654,0.00010188,2]
[356137642,1741942243719,-669.92,0.00010188,2]
[356137643,1741942243728,-543.7175715,0.00010188,2]
[356137644,1741942243739,-500.0,0.00010188,2]
[356137645,1741942243748,-565.53,0.00010188,2]
[356137646,1741942243758,-627.54005521,0.00010188,2]
[356137647,1741942243768,-211.23343923,0.00010188,2]
[356137648,1741942243780,-288.76656077,0.00010188,2]
[356137649,1741942243789,-134.35343937,0.00010188,2]
[356137650,1741942243805,-565.23656063,0.00010188,2]
[356137651,1741942243815,-612.02,0.00010188,2]
[356137652,1741942243824,-212.5057511,0.00010188,2]
[356137653,1741942243833,-500.0,0.00010188,2]
[356137654,1741942243842,-500.0,0.00010188,2]
[356137655,1741942243852,-501.87441125,0.00010188,2]
[356137656,1741942243862,-501.43743213,0.00010188,2]
[356137657,1741942243872,-500.0,0.00010188,2]
[356137658,1741942243881,-1266.81,0.00010188,2]
[356137659,1741942243891,-500.0,0.00010188,2]
[356137660,1741942243900,-500.0,0.00010188,2]
[356137661,1741942243910,-517.14253243,0.00010188,2]
[356137662,1741942243920,-1000.0,0.00010188,2]
[356137663,1741942243929,-1000.0,0.00010188,2]
[356137664,1741942243939,-1000.0,0.00010188,2]
[356137665,1741942243948,-1000.0,0.00010188,2]
[356137666,1741942243957,-1000.0,0.00010188,2]
[356137667,1741942243967,-1000.0,0.00010188,2]
[356137668,1741942243977,-1000.0,0.00010188,2]
[356137669,1741942243986,-1000.0,0.00010188,2]
[356137670,1741942243997,-1000.0,0.00010188,2]
[356137671,1741942244006,-1000.0,0.00010188,2]
[356137672,1741942244016,-1000.0,0.00010188,2]
[356137673,1741942244025,-1000.0,0.00010188,2]
[356137674,1741942244035,-1000.0,0.00010188,2]
[356137675,1741942244044,-1000.0,0.00010188,2]
[356137676,1741942244054,-1000.0,0.00010188,2]
[356137677,1741942244064,-1017.2008666,0.00010188,2]
[356137678,1741942244073,-500.0,0.00010188,2]
[356137679,1741942244082,-345.98256344,0.00010188,2]
[356137692,1741942246369,-154.01743656,0.00010188,2]
[356137693,1741942246379,-1320.94,0.00010188,2]
[356137694,1741942246389,-658.31,0.00010188,2]
[356137695,1741942246398,-500.0,0.00010188,2]
[356137696,1741942246408,-500.0,0.00010188,2]
[356137697,1741942246418,-796.01,0.00010188,2]
[356137698,1741942246427,-500.0,0.00010188,2]
[356137699,1741942246437,-346.58034592,0.00010188,2]
[356137700,1741942246446,-1260.28,0.00010188,2]
[356137701,1741942246456,-500.0,0.00010188,2]
[356137702,1741942246465,-1380.64,0.00010188,2]
[356137703,1741942246474,-505.77601257,0.00010188,2]
[356137704,1741942246484,-500.0,0.00010188,2]
[356137705,1741942246493,-508.66905643,0.00010188,2]
[356137706,1741942246503,-515.01594128,0.00010188,2]
[356137707,1741942246512,-354.85552508,0.00010188,2]
[356137708,1741942246521,-500.0,0.00010188,2]
[356137709,1741942246531,-500.0,0.00010188,2]
[356137710,1741942246541,-500.0,0.00010188,2]
[356137711,1741942246550,-500.0,0.00010188,2]
[356137712,1741942246559,-500.0,0.00010188,2]
[356137713,1741942246568,-500.0,0.00010188,2]
[356137714,1741942246578,-500.0,0.00010188,2]
[356137715,1741942246588,-607.67,0.00010188,2]
[356137716,1741942246597,-524.11,0.00010188,2]
[356137717,1741942246609,-500.0,0.00010188,2]
[356137718,1741942246619,-500.0,0.00010188,2]
[356137719,1741942246628,-500.0,0.00010188,2]
[356137720,1741942246637,-725.59,0.00010188,2]
[356137721,1741942246647,-921.51,0.00010188,2]
[356137722,1741942246657,-507.06416985,0.00010188,2]
[356137723,1741942246666,-500.0,0.00010188,2]
[356137724,1741942246676,-500.0,0.00010188,2]
[356137725,1741942246686,-500.0,0.00010188,2]
[356137726,1741942246696,-1327.55,0.00010188,2]
[356137727,1741942246705,-500.0,0.00010188,2]
[356137728,1741942246714,-920.44,0.00010188,2]
[356137729,1741942246723,-500.0,0.00010188,2]
[356137730,1741942246733,-504.68359965,0.00010188,2]
[356137731,1741942246742,-500.0,0.00010188,2]
[356137732,1741942246751,-500.0,0.00010188,2]
[356137733,1741942246760,-500.0,0.00010188,2]
[356137734,1741942246770,-500.0,0.00010188,2]
[356137735,1741942246780,-500.0,0.00010188,2]
[356137736,1741942246790,-503.06115317,0.00010188,2]
[356137737,1741942246800,-500.0,0.00010188,2]
[356137738,1741942246810,-500.0,0.00010188,2]
[356137739,1741942246820,-500.0,0.00010188,2]
[356137740,1741942246829,-500.0,0.00010188,2]
[356137741,1741942246839,-500.0,0.00010188,2]
[356137742,1741942246849,-500.0,0.00010188,2]
[356137744,1741942246858,-500.0,0.00010188,2]
[356137745,1741942246867,-500.0,0.00010188,2]
[356137746,1741942246877,-500.0,0.00010188,2]
[356137747,1741942246886,-500.0,0.00010188,2]
[356137748,1741942246895,-500.0,0.00010188,2]
[356137749,1741942246904,-542.36848673,0.00010188,2]
[356137750,1741942246913,-500.0,0.00010188,2]
[356137751,1741942246923,-500.0,0.00010188,2]
[356137752,1741942246932,-515.0119105,0.00010188,2]
[356137753,1741942246941,-500.0,0.00010188,2]
[356137754,1741942246951,-500.0,0.00010188,2]
[356137755,1741942246960,-500.0,0.00010188,2]
[356137756,1741942246970,-500.0,0.00010188,2]
[356137757,1741942246980,-500.0,0.00010188,2]
[356137758,1741942246990,-500.0,0.00010188,2]
[356137759,1741942247001,-500.0,0.00010188,2]
[356137760,1741942247011,-500.0,0.00010188,2]
[356137761,1741942247020,-500.0,0.00010188,2]
[356137762,1741942247029,-500.0,0.00010188,2]
[356137763,1741942247039,-176.5912761,0.00010188,2]
[356137764,1741942247049,-500.0,0.00010188,2]
[356137765,1741942247060,-551.4,0.00010188,2]
[356137766,1741942247070,-500.0,0.00010188,2]
[356137767,1741942247079,-500.0,0.00010188,2]
[356137768,1741942247088,-500.0,0.00010188,2]
[356137769,1741942247097,-649.41,0.00010188,2]
[356137770,1741942247292,-500.99363131,0.00010188,2]
[356137771,1741942247303,-500.0,0.00010188,2]
[356137772,1741942247313,-500.0,0.00010188,2]
[356137773,1741942247322,-1535.19,0.00010188,2]
[356137774,1741942247333,-500.0,0.00010188,2]
[356137775,1741942247343,-500.0,0.00010188,2]
[356137776,1741942247352,-507.59627085,0.00010188,2]
[356137777,1741942247362,-502.17556361,0.00010188,2]
[356137778,1741942247372,-2135.12,0.00010188,2]
[356137779,1741942247382,-500.0,0.00010188,2]
[356137780,1741942247391,-500.0,0.00010188,2]
[356137781,1741942247401,-500.0,0.00010188,2]
[356137782,1741942247411,-823.43,0.00010188,2]
[356137783,1741942247421,-465.84953342,0.00010188,2]
[356137784,1741942247430,-529.45840236,0.00010188,2]
[356137785,1741942247439,-514.22934982,0.00010188,2]
[356137786,1741942247449,-500.0,0.00010188,2]
[356137787,1741942247459,-500.0,0.00010188,2]
[356137788,1741942247468,-500.0,0.00010188,2]
[356137789,1741942247478,-500.0,0.00010188,2]
[356137790,1741942247487,-500.0,0.00010188,2]
[356137791,1741942247498,-500.0,0.00010188,2]
[356137792,1741942247507,-500.0,0.00010188,2]
[356137793,1741942247517,-500.0,0.00010188,2]
[356137794,1741942247526,-500.0,0.00010188,2]
[356137795,1741942247536,-625.76,0.00010188,2]
[356137796,1741942247546,-504.08693386,0.00010188,2]
[356137797,1741942247555,-500.65576546,0.00010188,2]
[356137798,1741942247565,-500.0,0.00010188,2]
[356137799,1741942247574,-500.0,0.00010188,2]
[356137800,1741942247583,-500.0,0.00010188,2]
[356137801,1741942247598,-500.0,0.00010188,2]
[356137802,1741942247607,-500.0,0.00010188,2]
[356137803,1741942247617,-500.0,0.00010188,2]
[356137804,1741942247628,-500.0,0.00010188,2]
[356137805,1741942247638,-500.0,0.00010188,2]
[356137806,1741942247648,-500.0,0.00010188,2]
[356137807,1741942247657,-500.0,0.00010188,2]
[356137808,1741942247667,-413.786482,0.00010188,2]
[356137809,1741942247677,-500.0,0.00010188,2]
[356137810,1741942247686,-512.47951069,0.00010188,2]
[356137811,1741942247695,-504.39485839,0.00010188,2]
[356137812,1741942247704,-594.66,0.00010188,2]
[356137813,1741942247713,-500.0,0.00010188,2]
[356137814,1741942247723,-500.0,0.00010189,2]
[356137815,1741942247732,-500.63771187,0.00010189,2]
[356137816,1741942247741,-500.0,0.00010189,2]
[356137817,1741942247751,-508.21951377,0.00010189,2]
[356137818,1741942247760,-500.0,0.00010189,2]
[356137819,1741942247769,-505.84256109,0.00010189,2]
[356137820,1741942247779,-500.0,0.00010189,2]
[356137821,1741942247788,-500.0,0.00010189,2]
[356137822,1741942247798,-509.61398887,0.00010189,2]
[356137823,1741942247807,-500.0,0.00010189,2]
[356137824,1741942247817,-500.0,0.00010189,2]
[356137825,1741942247826,-500.0,0.00010189,2]
[356137826,1741942247835,-500.0,0.00010189,2]
[356137827,1741942247844,-529.29048303,0.00010189,2]
[356137828,1741942247853,-501.49524815,0.00010189,2]
[356137829,1741942247863,-500.0,0.00010189,2]
[356137830,1741942247872,-500.0,0.00010189,2]
[356137831,1741942247881,-500.0,0.00010189,2]
[356137832,1741942247890,-500.0,0.00010189,2]
[356137833,1741942247899,-500.0,0.00010189,2]
[356137834,1741942247909,-500.0,0.00010189,2]
[356137835,1741942247918,-272.43480884,0.00010189,2]
[356137836,1741942247928,-500.0,0.00010189,2]
[356137837,1741942247938,-500.0,0.00010189,2]
[356137838,1741942247948,-575.28195602,0.00010189,2]
[356137839,1741942247957,-500.0,0.00010189,2]
[356137840,1741942247967,-500.0,0.00010189,2]
[356137841,1741942247976,-515.46649605,0.00010189,2]
[356137842,1741942247986,-500.0,0.00010189,2]
[356137843,1741942247995,-500.0,0.00010189,2]
[356137844,1741942248005,-510.20132824,0.00010189,2]
[356137845,1741942248015,-500.0,0.00010189,2]
[356137846,1741942248024,-500.0,0.00010189,2]
[356137847,1741942248033,-939.9,0.00010189,2]
[356137848,1741942248042,-500.0,0.00010189,2]
[356137849,1741942248052,-500.0,0.00010189,2]
[356137850,1741942248061,-992.85,0.00010189,2]
[356137851,1741942248070,-500.0,0.00010189,2]
[356137852,1741942248079,-500.0,0.00010189,2]
[356137853,1741942248088,-500.0,0.00010189,2]
[356137854,1741942248098,-517.48307412,0.00010189,2]
[356137855,1741942248107,-619.5,0.00010189,2]
[356137856,1741942248116,-500.0,0.00010189,2]
[356137857,1741942248125,-709.21,0.00010189,2]
[356137858,1741942248134,-500.0,0.00010189,2]
[356137859,1741942248143,-500.0,0.00010189,2]
[356137860,1741942248153,-1181.44,0.00010189,2]
[356137861,1741942248162,-509.34307879,0.00010189,2]
[356137862,1741942248172,-505.74206506,0.0001019,2]
[356137863,1741942248181,-513.17683004,0.0001019,2]
[356137864,1741942248191,-500.0,0.0001019,2]
[356137865,1741942248201,-507.83250687,0.0001019,2]
[356137866,1741942248210,-500.0,0.0001019,2]
[356137867,1741942248219,-500.68093468,0.0001019,2]
[356137868,1741942248229,-500.0,0.0001019,2]
[356137869,1741942248238,-500.0,0.0001019,2]
[356137870,1741942248248,-500.0,0.0001019,2]
[356137871,1741942248258,-500.0,0.0001019,2]
[356137872,1741942248267,-500.0,0.0001019,2]
[356137873,1741942248276,-500.0,0.0001019,2]
[356137874,1741942248286,-500.0,0.0001019,2]
[356137875,1741942248296,-505.26893047,0.0001019,2]
[356137876,1741942248305,-507.72708755,0.0001019,2]
[356137877,1741942248315,-500.0,0.0001019,2]
[356137878,1741942248324,-500.0,0.0001019,2]
[356137879,1741942248333,-500.0,0.0001019,2]
[356137880,1741942248342,-500.0,0.0001019,2]
[356137881,1741942248352,-511.75575664,0.0001019,2]
[356137882,1741942248361,-507.03604014,0.0001019,2]
[356137883,1741942248370,-500.0,0.0001019,2]
[356137884,1741942248380,-500.0,0.0001019,2]
[356137885,1741942248390,-500.0,0.0001019,2]
[356137886,1741942248400,-152.87460372,0.0001019,2]
[356137887,1741942248410,-944.11,0.0001019,2]
[356137888,1741942248420,-500.0,0.0001019,2]
[356137889,1741942248429,-500.0,0.0001019,2]
[356137890,1741942248438,-500.0,0.0001019,2]
[356137891,1741942248447,-500.0,0.0001019,2]
[356137892,1741942248457,-512.78403227,0.0001019,2]
[356137893,1741942248466,-500.0,0.0001019,2]
[356137894,1741942248475,-10570.05639991,0.00010356,2]
[356137895,1741942248490,-8493.81652333,0.00010356,2]
[356137896,1741942248500,-312.31703269,0.00010359,2]
[356137897,1741942248510,-250.0,0.00010411,2]
[356137898,1741942248520,-834.90316669,0.00010445,2]
[356137899,1741942248530,-247.65221803,0.00010456,2]
[356137900,1741942248539,-500.0,0.0001046,2]
[356137901,1741942248549,-509.9,0.0001046,2]
[356137902,1741942248559,-500.0,0.0001046,2]
[356137903,1741942248569,-500.0,0.0001046,2]
[356137904,1741942248579,-500.0,0.0001046,2]
[356137905,1741942248588,-4742.53,0.0001046,2]
[356137906,1741942248599,-500.0,0.0001046,2]
[356137907,1741942248608,-1267.47,0.0001046,2]
[356137908,1741942248618,-1350.96,0.0001046,2]
[356137909,1741942248627,-500.0,0.0001046,2]
[356137910,1741942248637,-6640.93,0.0001046,2]
[356137911,1741942248646,-1310.29,0.0001046,2]
[356137912,1741942248655,-1077.38,0.0001046,2]
[356137913,1741942248665,-1174.44,0.0001046,2]
[356137914,1741942248675,-3180.3,0.0001046,2]
[356137915,1741942248685,-1508.95,0.0001046,2]
[356137916,1741942248695,-501.87,0.0001046,2]
[356137917,1741942248704,-3922.94,0.0001046,2]
[356137918,1741942248713,-1025.85,0.0001046,2]
[356137919,1741942248722,-589.81,0.0001046,2]
[356137920,1741942248732,-500.0,0.0001046,2]
[356137921,1741942248742,-500.0,0.0001046,2]
[356137922,1741942248752,-786.11,0.0001046,2]
[356137923,1741942248761,-500.0,0.0001046,2]
[356137924,1741942248771,-1087.8,0.0001046,2]
[356137925,1741942248781,-500.0,0.0001046,2]
[356137926,1741942248790,-500.0,0.0001046,2]
[356137927,1741942248799,-500.0,0.0001046,2]
[356137928,1741942248808,-500.0,0.0001046,2]
[356137929,1741942248817,-3711.34,0.0001046,2]
[356137930,1741942248827,-500.0,0.0001046,2]
[356137931,1741942248836,-500.0,0.0001046,2]
[356137932,1741942248845,-500.0,0.00010461,2]
[356137933,1741942248855,-500.0,0.00010461,2]
[356137934,1741942248865,-500.0,0.00010461,2]
[356137935,1741942248874,-677.03,0.00010461,2]
[356137936,1741942248883,-500.0,0.00010461,2]
[356137937,1741942248893,-520.67,0.00010461,2]
[356137938,1741942248903,-500.0,0.00010461,2]
[356137939,1741942248912,-500.0,0.00010461,2]
[356137940,1741942248922,-500.0,0.00010461,2]
[356137941,1741942248931,-500.0,0.00010461,2]
[356137942,1741942248941,-679.2,0.00010461,2]
[356137943,1741942248950,-728.51,0.00010461,2]
[356137944,1741942248969,-500.0,0.00010461,2]
[356137945,1741942248982,-500.0,0.00010461,2]
[356137946,1741942248992,-1507.54,0.00010461,2]
[356137947,1741942249002,-500.0,0.00010461,2]
[356137948,1741942249012,-689.28,0.00010461,2]
[356137949,1741942249022,-500.0,0.00010461,2]
[356137950,1741942249032,-949.24,0.00010461,2]
[356137951,1741942249043,-500.0,0.00010461,2]
[356137952,1741942249052,-1362.0,0.00010461,2]
[356137953,1741942249062,-13890.98560028,0.00010461,2]
[356137954,1741942249076,-597.88,0.00010461,2]
[356137955,1741942262917,-233.57316464,0.00010088,2]
[356137956,1741942266059,-129.17461135,0.00010088,2]
[356137957,1741942266085,-55.86777596,0.00010157,2]
[356137958,1741942268001,-300.0,0.00010157,2]
[356137959,1741942270041,-6.88000003,0.00010157,2]
[356137960,1741942270065,-206.01159091,0.00010185,2]
[356137961,1741942275545,-93.98840909,0.00010185,2]
[356137962,1741942275571,-218.75922137,0.00010185,2]
[356137963,1741942275599,-187.25236954,0.00010185,2]
[356137964,1741942276674,-266.35,0.00010185,2]
[356137965,1741942281547,-14.78227137,0.00010185,2]
[356137966,1741942281572,-285.21772863,0.00010185,2]
[356137967,1741942285109,-153.26,0.00010185,2]
[356137968,1741942291067,-61.52227137,0.00010185,2]
[356137969,1741942291093,-106.44437013,0.00010185,2]
[356137970,1741942298132,-206.59990355,0.00010185,2]
[356137971,1741942417988,24900.0,9.286e-05,2]
[356137972,1741942504539,218.0268426,0.00012,3]
[356137973,1741942512634,600.0,0.00012,3]
[356137974,1741942574197,106582.56,0.00014,30]
[356137975,1741942602035,-300.0,0.00010086,2]
[356137976,1741942685680,2304.1078411,9.266e-05,2]
[356137978,1741942757433,167.9666415,9.193e-05,2]
[356137979,1741942758290,233.0,0.00014001,30]
[356137980,1741942812740,600.0,0.00012,3]
[356137983,1741942984546,9470.8092788,9.26e-05,2]
[356137985,1741943056604,339.5152604,9.186e-05,2]
[356137986,1741943110262,600.0,0.00012,3]
[356137988,1741943239111,-788.24332797,0.00010086,2]
[356137989,1741943239134,-760.0896719,0.00010147,2]
[356137990,1741943239158,-300.0,0.00010171,2]
[356137991,1741943239183,-500.0,0.00010172,2]
[356137992,1741943239207,-465.664123,0.00010172,2]
[356137993,1741943239235,-303.54428512,0.00010172,2]
[356137994,1741943239259,-500.0,0.00010172,2]
[356137995,1741943239283,-500.0,0.00010172,2]
[356137996,1741943239306,-500.0,0.00010172,2]
[356137997,1741943239328,-500.0,0.00010172,2]
[356137998,1741943239350,-500.0,0.00010172,2]
[356137999,1741943239372,-500.0,0.00010172,2]
[356138000,1741943239394,-448.71389362,0.00010172,2]
[356138001,1741943239416,-14679.62745008,0.00010173,2]
[356138002,1741943239436,-500.0,0.00010173,2]
[356138003,1741943239456,-384.56277308,0.00010173,2]
[356138004,1741943239477,-500.0,0.00010173,2]
[356138005,1741943239502,-502.85385566,0.00010173,2]
[356138006,1741943239522,-500.0,0.00010173,2]
[356138007,1741943239543,-500.0,0.00010173,2]
[356138008,1741943239563,-500.0,0.00010173,2]
[356138009,1741943239583,-503.9014203,0.00010173,2]
[356138010,1741943239604,-159.47259988,0.00010173,2]
[356138011,1741943239625,-500.0,0.00010173,2]
[356138012,1741943239646,-500.0,0.00010173,2]
[356138013,1741943239667,-500.0,0.00010173,2]
[356138014,1741943239687,-508.20000281,0.00010173,2]
[356138015,1741943239707,-585.82028959,0.00010173,2]
[356138016,1741943239727,-500.0,0.00010173,2]
[356138017,1741943239752,-474.95519472,0.00010173,2]
[356138018,1741943239773,-500.0,0.00010173,2]
[356138019,1741943239796,-500.0,0.00010173,2]
[356138020,1741943239818,-500.0,0.00010173,2]
[356138021,1741943239838,-264.95332704,0.00010184,2]
[356138022,1741943239860,-669.19,0.00010184,2]
[356138023,1741943239881,-500.0,0.00010184,2]
[356138024,1741943239903,-6636.48,0.00010184,2]
[356138025,1741943239926,-1076.54,0.00010184,2]
[356138026,1741943239948,-500.0,0.00010184,2]
[356138027,1741943239970,-500.0,0.00010184,2]
[356138028,1741943239992,-500.0,0.00010184,2]
[356138029,1741943240013,-500.0,0.00010184,2]
[356138030,1741943240035,-162.21632268,0.00010184,2]
[356138031,1741943240056,-500.0,0.00010184,2]
[356138032,1741943240275,-5140.21,0.00010184,2]
[356138033,1741943240298,-500.0,0.00010184,2]
[356138034,1741943240319,-774.56,0.00010184,2]
[356138035,1741943240341,-1397.89,0.00010184,2]
[356138036,1741943240362,-500.0,0.00010184,2]
[356138037,1741943240385,-500.0,0.00010184,2]
[356138038,1741943240406,-500.0,0.00010185,2]
[356138039,1741943240428,-500.0,0.00010185,2]
[356138040,1741943240449,-500.0,0.00010185,2]
[356138041,1741943240470,-500.07,0.00010185,2]
[356138042,1741943240491,-500.0,0.00010185,2]
[356138043,1741943240513,-576.12843149,0.00010185,2]
[356138044,1741943240534,-500.0,0.00010185,2]
[356138045,1741943240556,-500.0,0.00010185,2]
[356138046,1741943240578,-436.16495555,0.00010185,2]
[356138047,1741943240599,-500.0,0.00010185,2]
[356138048,1741943240619,-500.0,0.00010185,2]
[356138049,1741943240641,-500.0,0.00010185,2]
[356138050,1741943240662,-500.0,0.00010185,2]
[356138051,1741943240685,-500.0,0.00010185,2]